[Event "Titled Tuesday Blitz June 27 Early 2023"]
[White "Topalov, Aleksandar"]
[Black "Luxama, Jacques Muller"]
[WhiteFideId "925659"]
[BlackFideId "11900113"]
[WhiteElo "2403"]
[BlackElo "2219"]
[Result "0-1"]
[Round "10"]
[TimeControl "180+2"]
[Date "2023.06.27"]
[WhiteClock "0:01:54"]
[BlackClock "0:02:28"]
[Board "109"]

1. b3 {[%clk 0:02:31]}  e5 {[%clk 0:02:57]} 2. Bb2 {[%clk 0:02:30]}  Nc6 {[%clk 0:02:58]} 3. c4 {[%clk 0:02:30]}  Nf6 {[%clk 0:02:56]} 4. e3 {[%clk 0:02:30]}  d5 {[%clk 0:02:55]} 5. cxd5 {[%clk 0:02:31]}  Nxd5 {[%clk 0:02:54]} 6. a3 {[%clk 0:02:31]}  a6 {[%clk 0:02:53]} 7. Qc2 {[%clk 0:02:32]}  Be7 {[%clk 0:02:52]} 8. Nf3 {[%clk 0:02:32]}  Bf6 {[%clk 0:02:51]} 9. d3 {[%clk 0:02:31]}  O-O {[%clk 0:02:50]} 10. Nbd2 {[%clk 0:02:32]}  Re8 {[%clk 0:02:48]} 11. Ne4 {[%clk 0:02:32]}  Be7 {[%clk 0:02:37]} 12. Nxe5 {[%clk 0:02:25]}  Nxe5 {[%clk 0:02:35]} 13. Bxe5 {[%clk 0:02:25]}  Bxa3 {[%clk 0:02:35]} 14. Bxg7 {[%clk 0:02:16]}  Bb4+ {[%clk 0:02:35]} 15. Bc3 {[%clk 0:02:16]}  Rxe4 {[%clk 0:02:34]} 16. dxe4 {[%clk 0:02:09]}  Bxc3+ {[%clk 0:02:32]} 17. Ke2 {[%clk 0:02:09]}  Bxa1 {[%clk 0:02:31]} 18. exd5 {[%clk 0:02:09]}  Qxd5 {[%clk 0:02:29]} 19. Qxc7 {[%clk 0:01:54]}  Bf5 {[%clk 0:02:28]} 0-1


[Site "https://www.chess.com"]

[Event "Titled Tuesday Blitz June 27 Early 2023"]
[White "Ishowmoves57"]
[Black "Clawitter, Craig"]
[BlackFideId "2023105"]
[WhiteElo "2108"]
[BlackElo "2235"]
[Result "0-1"]
[Round "10"]
[TimeControl "180+2"]
[Date "2023.06.27"]
[WhiteClock "0:00:20"]
[BlackClock "0:00:20"]
[Board "110"]

1. e4 {[%clk 0:02:56]}  e6 {[%clk 0:02:59]} 2. d4 {[%clk 0:02:55]}  d5 {[%clk 0:03:00]} 3. exd5 {[%clk 0:02:54]}  exd5 {[%clk 0:03:01]} 4. Bd3 {[%clk 0:02:54]}  Bd6 {[%clk 0:03:01]} 5. Nf3 {[%clk 0:02:53]}  Nc6 {[%clk 0:02:59]} 6. h3 {[%clk 0:02:52]}  Nge7 {[%clk 0:02:59]} 7. c3 {[%clk 0:02:53]}  Bf5 {[%clk 0:02:59]} 8. O-O {[%clk 0:02:52]}  f6 {[%clk 0:02:56]} 9. Qc2 {[%clk 0:02:51]}  Qd7 {[%clk 0:02:56]} 10. b4 {[%clk 0:02:50]}  O-O {[%clk 0:02:52]} 11. a4 {[%clk 0:02:49]}  Rae8 {[%clk 0:02:51]} 12. Nbd2 {[%clk 0:02:31]}  Nd8 {[%clk 0:02:41]} 13. Nb3 {[%clk 0:02:28]}  Bxd3 {[%clk 0:02:28]} 14. Qxd3 {[%clk 0:02:27]}  c6 {[%clk 0:02:28]} 15. Nc5 {[%clk 0:02:26]}  Qf5 {[%clk 0:02:24]} 16. Bd2 {[%clk 0:01:53]}  b6 {[%clk 0:02:13]} 17. Qxf5 {[%clk 0:01:50]}  Nxf5 {[%clk 0:02:14]} 18. Nd3 {[%clk 0:01:42]}  Bc7 {[%clk 0:02:00]} 19. Rfe1 {[%clk 0:01:38]}  Nd6 {[%clk 0:01:56]} 20. Bf4 {[%clk 0:01:31]}  Ne6 {[%clk 0:01:41]} 21. Bg3 {[%clk 0:01:27]}  Kf7 {[%clk 0:01:07]} 22. Nd2 {[%clk 0:01:22]}  Re7 {[%clk 0:00:54]} 23. Nf4 {[%clk 0:01:07]}  Rfe8 {[%clk 0:00:27]} 24. Nxe6 {[%clk 0:01:05]}  Rxe6 {[%clk 0:00:27]} 25. Kf1 {[%clk 0:01:03]}  Rxe1+ {[%clk 0:00:16]} 26. Rxe1 {[%clk 0:01:02]}  Rxe1+ {[%clk 0:00:17]} 27. Kxe1 {[%clk 0:01:02]}  Ne8 {[%clk 0:00:18]} 28. Bxc7 {[%clk 0:00:59]}  Nxc7 {[%clk 0:00:19]} 29. Ke2 {[%clk 0:00:57]}  Ne8 {[%clk 0:00:18]} 30. Kd3 {[%clk 0:00:56]}  Nd6 {[%clk 0:00:19]} 31. c4 {[%clk 0:00:38]}  dxc4+ {[%clk 0:00:19]} 32. Nxc4 {[%clk 0:00:39]}  Nxc4 {[%clk 0:00:19]} 33. Kxc4 {[%clk 0:00:38]}  Ke6 {[%clk 0:00:19]} 34. b5 {[%clk 0:00:38]}  Kd6 {[%clk 0:00:17]} 35. f4 {[%clk 0:00:25]}  g6 {[%clk 0:00:16]} 36. g3 {[%clk 0:00:25]}  f5 {[%clk 0:00:13]} 37. h4 {[%clk 0:00:22]}  h6 {[%clk 0:00:11]} 38. Kc3 {[%clk 0:00:21]}  Kd5 {[%clk 0:00:12]} 39. Kd3 {[%clk 0:00:21]}  c5 {[%clk 0:00:10]} 40. dxc5 {[%clk 0:00:20]}  Kxc5 {[%clk 0:00:10]} 41. Kc3 {[%clk 0:00:19]}  h5 {[%clk 0:00:10]} 42. Kb3 {[%clk 0:00:09]}  Kd4 {[%clk 0:00:11]} 43. Kb4 {[%clk 0:00:10]}  Ke3 {[%clk 0:00:08]} 44. a5 {[%clk 0:00:09]}  Kf3 {[%clk 0:00:09]} 45. axb6 {[%clk 0:00:09]}  axb6 {[%clk 0:00:09]} 46. Kc4 {[%clk 0:00:10]}  Kxg3 {[%clk 0:00:10]} 47. Kd5 {[%clk 0:00:11]}  Kxf4 {[%clk 0:00:10]} 48. Kc6 {[%clk 0:00:11]}  Kg4 {[%clk 0:00:10]} 49. Kxb6 {[%clk 0:00:10]}  f4 {[%clk 0:00:10]} 50. Ka7 {[%clk 0:00:09]}  f3 {[%clk 0:00:11]} 51. b6 {[%clk 0:00:10]}  f2 {[%clk 0:00:12]} 52. b7 {[%clk 0:00:11]}  f1=Q {[%clk 0:00:12]} 53. b8=Q {[%clk 0:00:12]}  Qa1+ {[%clk 0:00:12]} 54. Kb7 {[%clk 0:00:12]}  Qb2+ {[%clk 0:00:12]} 55. Kc7 {[%clk 0:00:12]}  Qxb8+ {[%clk 0:00:13]} 56. Kxb8 {[%clk 0:00:12]}  Kxh4 {[%clk 0:00:14]} 57. Kc7 {[%clk 0:00:12]}  g5 {[%clk 0:00:14]} 58. Kd6 {[%clk 0:00:13]}  g4 {[%clk 0:00:15]} 59. Ke5 {[%clk 0:00:14]}  g3 {[%clk 0:00:15]} 60. Ke4 {[%clk 0:00:15]}  g2 {[%clk 0:00:16]} 61. Ke3 {[%clk 0:00:16]}  g1=Q+ {[%clk 0:00:16]} 62. Ke2 {[%clk 0:00:16]}  Qg4+ {[%clk 0:00:16]} 63. Kd3 {[%clk 0:00:17]}  Kg5 {[%clk 0:00:17]} 64. Kc3 {[%clk 0:00:17]}  h4 {[%clk 0:00:18]} 65. Kb3 {[%clk 0:00:18]}  h3 {[%clk 0:00:18]} 66. Kb2 {[%clk 0:00:19]}  h2 {[%clk 0:00:19]} 67. Kb3 {[%clk 0:00:20]}  h1=Q {[%clk 0:00:19]} 68. Kb2 {[%clk 0:00:21]}  Qh2+ {[%clk 0:00:19]} 69. Kb3 {[%clk 0:00:22]}  Qhh3+ {[%clk 0:00:19]} 70. Kb2 {[%clk 0:00:20]}  Qgg2+ {[%clk 0:00:20]} 0-1


[Site "https://www.chess.com"]

[Event "Titled Tuesday Blitz June 27 Early 2023"]
[White "Zampronha, Wladimir Camilo"]
[Black "Omariev, Maksim"]
[WhiteFideId "2103087"]
[BlackFideId "4193423"]
[WhiteElo "2258"]
[BlackElo "2415"]
[Result "1-0"]
[Round "10"]
[TimeControl "180+2"]
[Date "2023.06.27"]
[WhiteClock "0:00:07"]
[BlackClock "0:00:00"]
[Board "113"]

1. e4 {[%clk 0:03:00]}  c5 {[%clk 0:03:00]} 2. Nf3 {[%clk 0:03:00]}  d6 {[%clk 0:03:00]} 3. d4 {[%clk 0:03:00]}  cxd4 {[%clk 0:03:01]} 4. Nxd4 {[%clk 0:03:00]}  Nf6 {[%clk 0:03:02]} 5. Nc3 {[%clk 0:03:00]}  a6 {[%clk 0:03:02]} 6. Bg5 {[%clk 0:02:59]}  Nbd7 {[%clk 0:03:02]} 7. f4 {[%clk 0:02:59]}  Qc7 {[%clk 0:02:59]} 8. Qf3 {[%clk 0:02:57]}  h6 {[%clk 0:03:00]} 9. Bxf6 {[%clk 0:02:37]}  Nxf6 {[%clk 0:03:01]} 10. f5 {[%clk 0:02:36]}  g5 {[%clk 0:02:45]} 11. h4 {[%clk 0:02:17]}  g4 {[%clk 0:02:40]} 12. Qd3 {[%clk 0:02:13]}  b5 {[%clk 0:02:33]} 13. O-O-O {[%clk 0:02:13]}  Bb7 {[%clk 0:02:32]} 14. Nde2 {[%clk 0:02:06]}  Bg7 {[%clk 0:02:22]} 15. Kb1 {[%clk 0:02:05]}  O-O-O {[%clk 0:02:08]} 16. Nf4 {[%clk 0:02:03]}  Kb8 {[%clk 0:02:07]} 17. Ncd5 {[%clk 0:01:58]}  Nxd5 {[%clk 0:02:03]} 18. Nxd5 {[%clk 0:01:59]}  Qd7 {[%clk 0:01:55]} 19. h5 {[%clk 0:01:36]}  Be5 {[%clk 0:01:54]} 20. Be2 {[%clk 0:01:34]}  Rhg8 {[%clk 0:01:54]} 21. Ne3 {[%clk 0:01:33]}  g3 {[%clk 0:01:52]} 22. Bf3 {[%clk 0:01:30]}  e6 {[%clk 0:01:51]} 23. c4 {[%clk 0:01:28]}  Qc6 {[%clk 0:01:25]} 24. Rc1 {[%clk 0:01:16]}  Qb6 {[%clk 0:01:22]} 25. cxb5 {[%clk 0:01:12]}  axb5 {[%clk 0:01:09]} 26. Rc2 {[%clk 0:01:02]}  Rc8 {[%clk 0:00:50]} 27. Rhc1 {[%clk 0:00:55]}  Rxc2 {[%clk 0:00:45]} 28. Rxc2 {[%clk 0:00:56]}  Rc8 {[%clk 0:00:44]} 29. Rxc8+ {[%clk 0:00:55]}  Bxc8 {[%clk 0:00:45]} 30. a3 {[%clk 0:00:52]}  Bf4 {[%clk 0:00:43]} 31. Nc2 {[%clk 0:00:51]}  Qc5 {[%clk 0:00:31]} 32. fxe6 {[%clk 0:00:46]}  fxe6 {[%clk 0:00:29]} 33. Nb4 {[%clk 0:00:45]}  Bb7 {[%clk 0:00:23]} 34. Qb3 {[%clk 0:00:15]}  Qc4 {[%clk 0:00:14]} 35. Qxc4 {[%clk 0:00:14]}  bxc4 {[%clk 0:00:15]} 36. Kc2 {[%clk 0:00:15]}  Kc7 {[%clk 0:00:11]} 37. Kc3 {[%clk 0:00:15]}  Be5+ {[%clk 0:00:11]} 38. Kxc4 {[%clk 0:00:15]}  Bxb2 {[%clk 0:00:12]} 39. a4 {[%clk 0:00:15]}  Kb6 {[%clk 0:00:04]} 40. Nd3 {[%clk 0:00:08]}  Bf6 {[%clk 0:00:02]} 41. Nf4 {[%clk 0:00:08]}  Bc8 {[%clk 0:00:00]} 42. Bg4 {[%clk 0:00:07]} 1-0


[Site "https://www.chess.com"]

[Event "Titled Tuesday Blitz June 27 Early 2023"]
[White "Szente Varga, Fruzsina"]
[Black "Larina, Maria"]
[WhiteFideId "712264"]
[BlackFideId "24113182"]
[WhiteElo "2346"]
[BlackElo "2205"]
[Result "1-0"]
[Round "10"]
[TimeControl "180+2"]
[Date "2023.06.27"]
[WhiteClock "0:00:07"]
[BlackClock "0:00:00"]
[Board "114"]

1. e4 {[%clk 0:02:55]}  c6 {[%clk 0:02:58]} 2. d4 {[%clk 0:02:54]}  d5 {[%clk 0:02:58]} 3. Nc3 {[%clk 0:02:47]}  dxe4 {[%clk 0:02:58]} 4. Nxe4 {[%clk 0:02:48]}  Nf6 {[%clk 0:02:58]} 5. Nxf6+ {[%clk 0:02:44]}  exf6 {[%clk 0:02:59]} 6. c3 {[%clk 0:02:43]}  Bd6 {[%clk 0:02:59]} 7. Bd3 {[%clk 0:02:43]}  O-O {[%clk 0:02:59]} 8. Ne2 {[%clk 0:02:42]}  Re8 {[%clk 0:02:58]} 9. O-O {[%clk 0:02:40]}  Bg4 {[%clk 0:02:54]} 10. Qc2 {[%clk 0:02:39]}  g6 {[%clk 0:02:45]} 11. h3 {[%clk 0:02:20]}  Be6 {[%clk 0:02:44]} 12. Ng3 {[%clk 0:02:06]}  f5 {[%clk 0:02:39]} 13. Bd2 {[%clk 0:01:52]}  Nd7 {[%clk 0:02:37]} 14. b3 {[%clk 0:01:44]}  Qc7 {[%clk 0:02:29]} 15. Kh2 {[%clk 0:01:17]}  h5 {[%clk 0:02:24]} 16. f4 {[%clk 0:01:14]}  h4 {[%clk 0:02:11]} 17. Ne2 {[%clk 0:01:09]}  Nf6 {[%clk 0:02:09]} 18. Rae1 {[%clk 0:01:01]}  Nh5 {[%clk 0:02:05]} 19. Qc1 {[%clk 0:00:45]}  b5 {[%clk 0:01:58]} 20. Rf3 {[%clk 0:00:44]}  a6 {[%clk 0:01:53]} 21. g3 {[%clk 0:00:22]}  hxg3+ {[%clk 0:01:42]} 22. Nxg3 {[%clk 0:00:23]}  Nf6 {[%clk 0:01:31]} 23. Rg1 {[%clk 0:00:22]}  Kf8 {[%clk 0:01:23]} 24. c4 {[%clk 0:00:19]}  bxc4 {[%clk 0:01:11]} 25. bxc4 {[%clk 0:00:20]}  c5 {[%clk 0:00:51]} 26. d5 {[%clk 0:00:20]}  Nxd5 {[%clk 0:00:43]} 27. cxd5 {[%clk 0:00:19]}  Bxd5 {[%clk 0:00:44]} 28. Rff1 {[%clk 0:00:19]}  Rac8 {[%clk 0:00:36]} 29. Qc3 {[%clk 0:00:15]}  Ke7 {[%clk 0:00:27]} 30. Re1+ {[%clk 0:00:14]}  Kd7 {[%clk 0:00:24]} 31. Bxa6 {[%clk 0:00:14]}  Rb8 {[%clk 0:00:23]} 32. a4 {[%clk 0:00:13]}  Bc6 {[%clk 0:00:21]} 33. Qc4 {[%clk 0:00:11]}  Rf8 {[%clk 0:00:14]} 34. Bc3 {[%clk 0:00:08]}  Bxf4 {[%clk 0:00:12]} 35. Rd1+ {[%clk 0:00:09]}  Bd6 {[%clk 0:00:09]} 36. Be5 {[%clk 0:00:08]}  Rb4 {[%clk 0:00:00]} 37. Qc3 {[%clk 0:00:07]} 1-0


[Site "https://www.chess.com"]

[Event "Titled Tuesday Blitz June 27 Early 2023"]
[White "Ho, In Hei Henry"]
[Black "Vaglio Munoz, Jaime"]
[WhiteFideId "6002552"]
[BlackFideId "6500145"]
[WhiteElo "2037"]
[BlackElo "2301"]
[Result "1-0"]
[Round "10"]
[TimeControl "180+2"]
[Date "2023.06.27"]
[WhiteClock "0:00:12"]
[BlackClock "0:00:17"]
[Board "116"]

1. d4 {[%clk 0:03:00]}  c6 {[%clk 0:02:55]} 2. c4 {[%clk 0:03:00]}  b5 {[%clk 0:02:55]} 3. b3 {[%clk 0:02:58]}  d5 {[%clk 0:02:53]} 4. e3 {[%clk 0:02:56]}  bxc4 {[%clk 0:02:52]} 5. bxc4 {[%clk 0:02:56]}  Nf6 {[%clk 0:02:49]} 6. Nf3 {[%clk 0:02:56]}  Bg4 {[%clk 0:02:48]} 7. Nc3 {[%clk 0:02:54]}  Bxf3 {[%clk 0:02:47]} 8. Qxf3 {[%clk 0:02:54]}  e6 {[%clk 0:02:47]} 9. c5 {[%clk 0:02:50]}  Nbd7 {[%clk 0:02:45]} 10. Bd3 {[%clk 0:02:49]}  e5 {[%clk 0:02:45]} 11. Bf5 {[%clk 0:02:44]}  e4 {[%clk 0:02:43]} 12. Qh3 {[%clk 0:02:43]}  g6 {[%clk 0:02:41]} 13. Bxd7+ {[%clk 0:02:43]}  Qxd7 {[%clk 0:02:38]} 14. Qxd7+ {[%clk 0:02:43]}  Nxd7 {[%clk 0:02:39]} 15. Bd2 {[%clk 0:02:41]}  Rb8 {[%clk 0:02:37]} 16. Ke2 {[%clk 0:02:37]}  Be7 {[%clk 0:02:23]} 17. Rhb1 {[%clk 0:02:36]}  O-O {[%clk 0:02:22]} 18. f3 {[%clk 0:02:32]}  f5 {[%clk 0:02:20]} 19. Na4 {[%clk 0:02:17]}  Kf7 {[%clk 0:02:18]} 20. Ba5 {[%clk 0:02:17]}  Ke6 {[%clk 0:02:17]} 21. Bc7 {[%clk 0:02:16]}  Rbc8 {[%clk 0:02:13]} 22. Rb7 {[%clk 0:02:14]}  Ra8 {[%clk 0:01:58]} 23. Rab1 {[%clk 0:02:14]}  Rfc8 {[%clk 0:01:56]} 24. Bg3 {[%clk 0:02:13]}  g5 {[%clk 0:01:54]} 25. Nc3 {[%clk 0:02:04]}  h5 {[%clk 0:01:53]} 26. h3 {[%clk 0:02:01]}  Bd8 {[%clk 0:01:45]} 27. fxe4 {[%clk 0:01:50]}  fxe4 {[%clk 0:01:43]} 28. Rf1 {[%clk 0:01:41]}  Ba5 {[%clk 0:01:42]} 29. Nd1 {[%clk 0:01:29]}  Rf8 {[%clk 0:01:22]} 30. Bd6 {[%clk 0:01:25]}  Rxf1 {[%clk 0:01:20]} 31. Kxf1 {[%clk 0:01:26]}  Nf6 {[%clk 0:01:12]} 32. Nf2 {[%clk 0:00:54]}  g4 {[%clk 0:01:11]} 33. hxg4 {[%clk 0:00:52]}  hxg4 {[%clk 0:01:12]} 34. Nh1 {[%clk 0:00:49]}  Bd2 {[%clk 0:01:04]} 35. Ng3 {[%clk 0:00:46]}  Nd7 {[%clk 0:00:56]} 36. Ke2 {[%clk 0:00:41]}  Ba5 {[%clk 0:00:51]} 37. Nh5 {[%clk 0:00:40]}  Rd8 {[%clk 0:00:23]} 38. Nf4+ {[%clk 0:00:31]}  Kf5 {[%clk 0:00:22]} 39. Rxa7 {[%clk 0:00:28]}  g3 {[%clk 0:00:21]} 40. Rxa5 {[%clk 0:00:25]}  Rh8 {[%clk 0:00:20]} 41. Ra7 {[%clk 0:00:23]}  Nf6 {[%clk 0:00:20]} 42. Rf7 {[%clk 0:00:20]}  Kg5 {[%clk 0:00:19]} 43. Be7 {[%clk 0:00:19]}  Rh1 {[%clk 0:00:18]} 44. Rxf6 {[%clk 0:00:16]}  Kg4 {[%clk 0:00:17]} 45. Rg6+ {[%clk 0:00:15]}  Kf5 {[%clk 0:00:17]} 46. Rg5# {[%clk 0:00:12]} 1-0


[Site "https://www.chess.com"]

[Event "Titled Tuesday Blitz June 27 Early 2023"]
[White "kuanysh1981"]
[Black "Georg, Heinz"]
[BlackFideId "4607295"]
[WhiteElo "2493"]
[BlackElo "2271"]
[Result "1-0"]
[Round "10"]
[TimeControl "180+2"]
[Date "2023.06.27"]
[WhiteClock "0:00:43"]
[BlackClock "0:00:00"]
[Board "117"]

1. e4 {[%clk 0:03:00]}  e5 {[%clk 0:03:00]} 2. Nf3 {[%clk 0:02:59]}  Nc6 {[%clk 0:03:00]} 3. Bc4 {[%clk 0:02:59]}  Nf6 {[%clk 0:03:00]} 4. d3 {[%clk 0:02:55]}  d5 {[%clk 0:03:00]} 5. exd5 {[%clk 0:02:55]}  Nxd5 {[%clk 0:03:00]} 6. O-O {[%clk 0:02:56]}  Nb6 {[%clk 0:03:00]} 7. Bb3 {[%clk 0:02:56]}  Bd6 {[%clk 0:02:59]} 8. Nc3 {[%clk 0:02:50]}  O-O {[%clk 0:02:59]} 9. Ng5 {[%clk 0:02:49]}  h6 {[%clk 0:02:58]} 10. Qh5 {[%clk 0:02:47]}  hxg5 {[%clk 0:02:53]} 11. Bxg5 {[%clk 0:02:41]}  Be7 {[%clk 0:02:53]} 12. Ne4 {[%clk 0:02:41]}  Bf5 {[%clk 0:02:49]} 13. Bxe7 {[%clk 0:02:40]}  Nxe7 {[%clk 0:02:46]} 14. f4 {[%clk 0:02:33]}  Bg6 {[%clk 0:02:39]} 15. Qg5 {[%clk 0:02:26]}  Qd4+ {[%clk 0:02:37]} 16. Kh1 {[%clk 0:02:25]}  Bxe4 {[%clk 0:02:18]} 17. dxe4 {[%clk 0:02:24]}  Rae8 {[%clk 0:02:09]} 18. f5 {[%clk 0:02:19]}  Qxe4 {[%clk 0:02:01]} 19. Rae1 {[%clk 0:02:17]}  Qxe1 {[%clk 0:01:31]} 20. Rxe1 {[%clk 0:02:16]}  Ned5 {[%clk 0:01:30]} 21. h3 {[%clk 0:02:01]}  c5 {[%clk 0:01:27]} 22. Bxd5 {[%clk 0:01:51]}  Nxd5 {[%clk 0:01:26]} 23. c3 {[%clk 0:01:52]}  f6 {[%clk 0:01:22]} 24. Qd2 {[%clk 0:01:46]}  Rd8 {[%clk 0:01:22]} 25. Qf2 {[%clk 0:01:46]}  b6 {[%clk 0:01:22]} 26. Rd1 {[%clk 0:01:46]}  Nf4 {[%clk 0:01:20]} 27. Rxd8 {[%clk 0:01:45]}  Rxd8 {[%clk 0:01:20]} 28. Qf3 {[%clk 0:01:45]}  Rd7 {[%clk 0:01:12]} 29. b4 {[%clk 0:01:45]}  cxb4 {[%clk 0:01:12]} 30. cxb4 {[%clk 0:01:46]}  Kf7 {[%clk 0:01:06]} 31. a4 {[%clk 0:01:45]}  Nd5 {[%clk 0:01:03]} 32. Qb3 {[%clk 0:01:41]}  Ke7 {[%clk 0:01:03]} 33. Qc4 {[%clk 0:01:41]}  Kd6 {[%clk 0:01:01]} 34. b5 {[%clk 0:01:33]}  Rc7 {[%clk 0:01:01]} 35. Qg4 {[%clk 0:01:33]}  Ne3 {[%clk 0:00:47]} 36. Qb4+ {[%clk 0:01:29]}  Rc5 {[%clk 0:00:42]} 37. Qd2+ {[%clk 0:01:24]}  Nd5 {[%clk 0:00:42]} 38. Qd3 {[%clk 0:01:20]}  Rc3 {[%clk 0:00:38]} 39. Qe4 {[%clk 0:01:18]}  Re3 {[%clk 0:00:35]} 40. Qg4 {[%clk 0:01:15]}  Nf4 {[%clk 0:00:29]} 41. Qxg7 {[%clk 0:01:14]}  Re1+ {[%clk 0:00:29]} 42. Kh2 {[%clk 0:01:13]}  e4 {[%clk 0:00:26]} 43. Qxf6+ {[%clk 0:01:13]}  Kd5 {[%clk 0:00:27]} 44. Qc6+ {[%clk 0:01:07]}  Kd4 {[%clk 0:00:22]} 45. f6 {[%clk 0:01:03]}  e3 {[%clk 0:00:20]} 46. f7 {[%clk 0:01:01]}  e2 {[%clk 0:00:17]} 47. Qd6+ {[%clk 0:00:51]}  Nd5 {[%clk 0:00:10]} 48. f8=Q {[%clk 0:00:46]}  Rf1 {[%clk 0:00:09]} 49. Qg7+ {[%clk 0:00:44]}  Kc4 {[%clk 0:00:00]} 50. Qg4+ {[%clk 0:00:43]} 1-0


[Site "https://www.chess.com"]

[Event "Titled Tuesday Blitz June 27 Early 2023"]
[White "Ng, Clive"]
[Black "campochess"]
[WhiteFideId "3214869"]
[WhiteElo "2326"]
[BlackElo "2168"]
[Result "1-0"]
[Round "10"]
[TimeControl "180+2"]
[Date "2023.06.27"]
[WhiteClock "0:00:14"]
[BlackClock "0:00:00"]
[Board "120"]

1. e4 {[%clk 0:02:56]}  c5 {[%clk 0:02:53]} 2. Nf3 {[%clk 0:02:56]}  Nc6 {[%clk 0:02:53]} 3. d4 {[%clk 0:02:56]}  cxd4 {[%clk 0:02:53]} 4. Nxd4 {[%clk 0:02:57]}  e5 {[%clk 0:02:53]} 5. Nb5 {[%clk 0:02:56]}  a6 {[%clk 0:02:53]} 6. Nd6+ {[%clk 0:02:55]}  Bxd6 {[%clk 0:02:53]} 7. Qxd6 {[%clk 0:02:56]}  Qe7 {[%clk 0:02:53]} 8. Qxe7+ {[%clk 0:02:52]}  Ngxe7 {[%clk 0:02:51]} 9. c3 {[%clk 0:02:45]}  d5 {[%clk 0:02:50]} 10. Bd3 {[%clk 0:02:44]}  f5 {[%clk 0:02:48]} 11. exd5 {[%clk 0:02:33]}  Nxd5 {[%clk 0:02:46]} 12. O-O {[%clk 0:02:34]}  Nb6 {[%clk 0:02:36]} 13. Re1 {[%clk 0:02:33]}  O-O {[%clk 0:02:36]} 14. Nd2 {[%clk 0:02:33]}  e4 {[%clk 0:02:35]} 15. Bc2 {[%clk 0:02:32]}  Be6 {[%clk 0:02:33]} 16. f3 {[%clk 0:02:30]}  Bd5 {[%clk 0:02:28]} 17. fxe4 {[%clk 0:02:30]}  fxe4 {[%clk 0:02:28]} 18. Nf1 {[%clk 0:02:29]}  Rae8 {[%clk 0:02:22]} 19. Ne3 {[%clk 0:02:29]}  Bf7 {[%clk 0:02:18]} 20. b3 {[%clk 0:02:29]}  Bg6 {[%clk 0:02:16]} 21. a4 {[%clk 0:02:23]}  Nd7 {[%clk 0:02:13]} 22. Ba3 {[%clk 0:02:21]}  Rf6 {[%clk 0:02:07]} 23. Rad1 {[%clk 0:02:13]}  Nde5 {[%clk 0:02:05]} 24. Rd2 {[%clk 0:01:58]}  Nd3 {[%clk 0:02:00]} 25. Red1 {[%clk 0:01:17]}  Nce5 {[%clk 0:01:46]} 26. h3 {[%clk 0:01:12]}  Bh5 {[%clk 0:01:42]} 27. Rf1 {[%clk 0:01:06]}  Rxf1+ {[%clk 0:01:32]} 28. Nxf1 {[%clk 0:01:06]}  e3 {[%clk 0:01:09]} 29. Nxe3 {[%clk 0:01:03]}  Nf4 {[%clk 0:01:01]} 30. Kf2 {[%clk 0:00:46]}  Ne6 {[%clk 0:00:42]} 31. Rd5 {[%clk 0:00:42]}  Nf4 {[%clk 0:00:40]} 32. Rd2 {[%clk 0:00:30]}  Bg6 {[%clk 0:00:27]} 33. Bd1 {[%clk 0:00:26]}  Ned3+ {[%clk 0:00:20]} 34. Kf3 {[%clk 0:00:22]}  Re4 {[%clk 0:00:12]} 35. Bc2 {[%clk 0:00:17]}  Ne5+ {[%clk 0:00:12]} 36. Kf2 {[%clk 0:00:15]}  Rxe3 {[%clk 0:00:12]} 37. Kxe3 {[%clk 0:00:14]}  Ne6 {[%clk 0:00:11]} 38. Bxg6 {[%clk 0:00:14]}  hxg6 {[%clk 0:00:10]} 39. Ke2 {[%clk 0:00:14]}  Nf4+ {[%clk 0:00:10]} 40. Kd1 {[%clk 0:00:14]}  g5 {[%clk 0:00:09]} 41. Bd6 {[%clk 0:00:14]}  Nf7 {[%clk 0:00:07]} 42. Bxf4 {[%clk 0:00:14]}  gxf4 {[%clk 0:00:08]} 43. Rd7 {[%clk 0:00:15]}  Ne5 {[%clk 0:00:07]} 44. Rxb7 {[%clk 0:00:15]}  f3 {[%clk 0:00:07]} 45. gxf3 {[%clk 0:00:15]}  Nxf3 {[%clk 0:00:07]} 46. Rb6 {[%clk 0:00:15]}  a5 {[%clk 0:00:07]} 47. Rb5 {[%clk 0:00:14]}  Ng1 {[%clk 0:00:05]} 48. h4 {[%clk 0:00:14]}  Nf3 {[%clk 0:00:05]} 49. h5 {[%clk 0:00:14]}  Kh7 {[%clk 0:00:04]} 50. Rxa5 {[%clk 0:00:14]}  Nh4 {[%clk 0:00:04]} 51. Rb5 {[%clk 0:00:14]}  Nf3 {[%clk 0:00:00]} 52. a5 {[%clk 0:00:14]} 1-0


[Site "https://www.chess.com"]

[Event "Titled Tuesday Blitz June 27 Early 2023"]
[White "Floresvillar Gonzalez, Luis Migu"]
[Black "Pein, Jonathan"]
[WhiteFideId "5100542"]
[BlackFideId "417092"]
[WhiteElo "2117"]
[BlackElo "2402"]
[Result "0-1"]
[Round "10"]
[TimeControl "180+2"]
[Date "2023.06.27"]
[WhiteClock "0:00:00"]
[BlackClock "0:02:06"]
[Board "122"]

1. d4 {[%clk 0:02:57]}  d6 {[%clk 0:02:56]} 2. c3 {[%clk 0:02:56]}  Nf6 {[%clk 0:02:55]} 3. Nf3 {[%clk 0:02:55]}  g6 {[%clk 0:02:54]} 4. Bg5 {[%clk 0:02:52]}  Bg7 {[%clk 0:02:54]} 5. Nbd2 {[%clk 0:02:51]}  c5 {[%clk 0:02:48]} 6. e3 {[%clk 0:02:50]}  O-O {[%clk 0:02:45]} 7. Bd3 {[%clk 0:02:49]}  Nc6 {[%clk 0:02:45]} 8. O-O {[%clk 0:02:49]}  b6 {[%clk 0:02:46]} 9. Rc1 {[%clk 0:02:47]}  Bb7 {[%clk 0:02:47]} 10. Qe2 {[%clk 0:02:45]}  a6 {[%clk 0:02:46]} 11. a4 {[%clk 0:02:44]}  Re8 {[%clk 0:02:43]} 12. Rfd1 {[%clk 0:02:42]}  Ra7 {[%clk 0:02:41]} 13. h3 {[%clk 0:02:40]}  Qa8 {[%clk 0:02:41]} 14. Bxf6 {[%clk 0:02:35]}  Bxf6 {[%clk 0:02:41]} 15. d5 {[%clk 0:02:35]}  Ne5 {[%clk 0:02:37]} 16. Nxe5 {[%clk 0:02:34]}  Bxe5 {[%clk 0:02:38]} 17. e4 {[%clk 0:02:33]}  e6 {[%clk 0:02:38]} 18. dxe6 {[%clk 0:02:20]}  Rxe6 {[%clk 0:02:39]} 19. Qf3 {[%clk 0:02:13]}  Bg7 {[%clk 0:02:38]} 20. Re1 {[%clk 0:02:10]}  d5 {[%clk 0:02:31]} 21. Rcd1 {[%clk 0:01:57]}  dxe4 {[%clk 0:02:31]} 22. Bxe4 {[%clk 0:01:53]}  Bxe4 {[%clk 0:02:31]} 23. Rxe4 {[%clk 0:01:50]}  Rxe4 {[%clk 0:02:20]} 24. Qxe4 {[%clk 0:01:47]}  Qxe4 {[%clk 0:02:19]} 25. Nxe4 {[%clk 0:01:47]}  Re7 {[%clk 0:02:20]} 26. f3 {[%clk 0:01:44]}  f5 {[%clk 0:02:20]} 27. Ng3 {[%clk 0:01:37]}  Be5 {[%clk 0:02:15]} 28. Kf2 {[%clk 0:01:29]}  Kf7 {[%clk 0:02:08]} 29. Ne2 {[%clk 0:01:28]}  h5 {[%clk 0:02:05]} 30. Rd2 {[%clk 0:01:24]}  h4 {[%clk 0:02:05]} 31. b3 {[%clk 0:01:21]}  Bf4 {[%clk 0:02:05]} 32. Rc2 {[%clk 0:01:17]}  Be3+ {[%clk 0:02:06]} 33. Kf1 {[%clk 0:01:15]}  Rd7 {[%clk 0:02:06]} 34. Nc1 {[%clk 0:01:05]}  Rd1+ {[%clk 0:02:06]} 35. Ke2 {[%clk 0:01:05]}  Rxc1 {[%clk 0:02:07]} 36. Rxc1 {[%clk 0:00:39]}  Bxc1 {[%clk 0:02:08]} 37. b4 {[%clk 0:00:40]}  cxb4 {[%clk 0:02:05]} 38. cxb4 {[%clk 0:00:15]}  b5 {[%clk 0:02:05]} 39. axb5 {[%clk 0:00:13]}  axb5 {[%clk 0:02:06]} 40. Kd3 {[%clk 0:00:00]}  Bb2 {[%clk 0:02:06]} 0-1


[Site "https://www.chess.com"]